[Event "CZE-ch U14 Open 2023"]
[Site "Teplice"]
[Date "2023.03.15"]
[Round "6.7"]
[White "Andrle, Filip"]
[Black "Stary, Vojtech"]
[Result "0-1"]
[ECO "C50"]
[WhiteElo "1721"]
[BlackElo "1814"]
[Annotator "NA RC COMBH"]
[PlyCount "116"]
[EventDate "2023.03.09"]
[EventType "swiss"]
[EventCountry "CZE"]
[SourceTitle "playchess.com"]
[Source "ChessBase"]
[SourceQuality "1"]
[TimeControl "40/5400+30:1800+30"]

1. e4 {[%emt 0:00:03]} e5 {[%emt 0:00:05]} 2. Nf3 {[%emt 0:00:25]} Nc6 {[%emt 0:00:04]} 3. Bc4 {[%emt 0:00:38]} Bc5 {[%emt 0:00:07]} 4. d3 {[%emt 0:00:21]} Nf6 {[%emt 0:00:13]} 5. Be3 {[%emt 0:02:07]} Bb6 {[%emt 0:00:18]} 6. c3 {[%emt 0:04:19]} d5 {[%emt 0:00:37]} 7. exd5 {[%emt 0:03:10]} Nxd5 {[%emt 0:00:30]} 8. Bxb6 {[%emt 0:03:43]} axb6 {[%emt 0:00:51]} 9. O-O {[%emt 0:05:57]} O-O {[%emt 0:00:48]} 10. Re1 {[%emt 0:03:05]} Nf4 {[%emt 0:09:46]} 11. Qc2 {[%emt 0:13:21]} Re8 {[%emt 0:16:03]} (11... Bf5 $17 12. Re3 Na5 13. Rxe5 Nxc4 14. Rxf5 Qxd3 15. Qxd3 Nxd3) 12. Nbd2 {[%emt 0:06:00]} (12. g3 $15 Nh3+ 13. Kg2) 12... Bf5 {[%emt 0:13:12]} 13. Ne4 {[%emt 0:06:57]} Na5 {[%emt 0:02:40]} 14. Rad1 {[%emt 0:07:30]} Nxc4 {[%emt 0:02:38]} 15. dxc4 {[%emt 0:00:34]} Qe7 {[%emt 0:00:40]} 16. Qb3 {[%emt 0:04:55]} (16. a3 $17 {keeps fighting.}) 16... Bg4 {[%emt 0:13:54]} 17. Re3 {[%emt 0:09:07]} h6 {[%emt 0:08:11]} 18. Rde1 {[%emt 0:07:36]} f5 {[%emt 0:10:34]} (18... f6 $19 19. a3 Qf7) 19. Ng3 {[%emt 0:02:41]} e4 {[%emt 0:02:02]} 20. Nd4 {[%emt 0:02:33]} Qg5 {[%emt 0:06:16]} 21. h3 {[%emt 0:14:01]} Bxh3 {[%emt 0:01:05]} 22. gxh3 {[%emt 0:00:51]} Nxh3+ {[%emt 0:00:56]} 23. Kh2 {[%emt 0:01:10]} Nxf2 {[%emt 0:00:54]} 24. Ndxf5 {[%emt 0:00:50]} Ng4+ {[%emt 0:00:25]} 25. Kg2 {[%emt 0:00:10]} Nxe3+ {[%emt 0:00:26]} 26. Nxe3 {[%emt 0:00:29]} h5 {[%emt 0:00:44]} 27. c5+ {[%emt 0:00:21]} Kh8 {[%emt 0:00:29]} 28. Rh1 {[%emt 0:00:54]} g6 {[%emt 0:03:25]} 29. Nef1 {[%emt 0:00:39]} Qf4 {[%emt 0:03:38]} 30. Qd5 {[%emt 0:00:30]} c6 {[%emt 0:03:02]} 31. Qd4+ {[%emt 0:00:27]} Kg8 {[%emt 0:00:44]} 32. Qc4+ {[%emt 0:00:12]} Qf7 {[%emt 0:00:32]} 33. Qd4 {[%emt 0:00:38]} Rxa2 {[%emt 0:00:27]} 34. Nxe4 {[%emt 0:00:40]} Rxb2+ {[%emt 0:00:18]} 35. Kg3 {[%emt 0:00:31]} Rf8 {[%emt 0:00:48]} 36. Nfd2 {[%emt 0:00:33]} Qf4+ {[%emt 0:00:11]} 37. Kh3 {[%emt 0:00:29]} Qg4+ {[%emt 0:00:25]} 38. Kh2 {[%emt 0:00:21]} Qf4+ {[%emt 0:00:55]} 39. Kh3 {[%emt 0:00:27]} Qf5+ {[%emt 0:00:27]} 40. Kh2 {[%emt 0:00:18]} Kh7 {[%emt 0:00:37]} 41. Rg1 {[%emt 0:30:45]} bxc5 {[%emt 0:05:37]} 42. Qe3 {[%emt 0:00:00]} Qf4+ {[%emt 0:09:54]} 43. Qxf4 {[%emt 0:00:00]} Rxf4 {[%emt 0:00:01]} 44. Kh3 {[%emt 0:00:00]} b5 {[%emt 0:01:21]} 45. Ra1 {[%emt 0:00:00]} b4 {[%emt 0:04:44]} 46. cxb4 {[%emt 0:00:00]} cxb4 {[%emt 0:00:38]} 47. Rc1 {[%emt 0:00:00]} b3 {[%emt 0:02:39]} 48. Rxc6 {[%emt 0:00:00]} Rc2 $19 {[%emt 0:00:45]} 49. Rb6 {[%emt 0:00:00]} b2 {[%emt 0:00:22]} 50. Rb5 {[%emt 0:00:00]} Kh6 {[%emt 0:01:03]} 51. Rb6 {[%emt 0:00:08]} Rg4 {[%emt 0:01:40]} 52. Rb7 {[%emt 0:02:35]} Rg1 {[%emt 0:02:50]} 53. Rb6 {[%emt 0:03:15]} Rd1 {[%emt 0:00:35]} 54. Rd6 {[%emt 0:00:39]} Rdxd2 {[%emt 0:00:43]} 55. Nxd2 {[%emt 0:00:31] [#]} Rxd2 $1 {[%emt 0:00:08] Remove Defender, Promotion} 56. Rb6 {[%emt 0:00:13]} Kg5 {[%emt 0:00:41]} 57. Rb4 {[%emt 0:00:15]} Kf5 {[%emt 0:00:21]} 58. Kg3 {[%emt 0:00:24]} Ke5 {[%emt 0:00:47]} 0-1

[Event "CZE-ch U14 Open 2023"]
[Site "Teplice"]
[Date "2023.03.15"]
[Round "6.8"]
[White "Vlcek, Vojtech"]
[Black "Veverka, Vladimir"]
[Result "1/2-1/2"]
[ECO "E11"]
[WhiteElo "1671"]
[BlackElo "1735"]
[Annotator "NA RC COMBH"]
[PlyCount "76"]
[EventDate "2023.03.09"]
[EventType "swiss"]
[EventCountry "CZE"]
[SourceTitle "playchess.com"]
[Source "ChessBase"]
[SourceQuality "1"]
[TimeControl "40/5400+30:1800+30"]

1. d4 {[%emt 0:00:28]} Nf6 {[%emt 0:00:27]} 2. c4 {[%emt 0:00:39]} e6 {[%emt 0:00:37]} 3. Nf3 {[%emt 0:00:25]} Bb4+ {[%emt 0:00:39]} 4. Bd2 {[%emt 0:00:10]} Bxd2+ {[%emt 0:01:53]} 5. Nbxd2 {[%emt 0:04:03]} d5 {[%emt 0:06:12]} 6. cxd5 {[%emt 0:05:25]} exd5 {[%emt 0:00:24]} 7. e3 {[%emt 0:00:48]} Nbd7 {[%emt 0:00:41]} 8. Bd3 {[%emt 0:00:27]} b6 {[%emt 0:00:33]} 9. O-O {[%emt 0:03:10]} O-O {[%emt 0:03:43]} 10. Rc1 {[%emt 0:02:40]} c5 {[%emt 0:02:46]} 11. dxc5 {[%emt 0:15:22]} Nxc5 {[%emt 0:02:41]} 12. Be2 {[%emt 0:00:34]} Bb7 {[%emt 0:05:43]} 13. Nb3 {[%emt 0:03:09]} Rc8 {[%emt 0:02:38]} 14. Nxc5 {[%emt 0:01:48]} bxc5 {[%emt 0:00:28]} 15. b3 {[%emt 0:05:11]} Qd6 {[%emt 0:04:54]} 16. h3 {[%emt 0:01:42]} Rfd8 {[%emt 0:00:57]} 17. Qd2 {[%emt 0:01:44]} h6 {[%emt 0:06:18]} 18. Rfd1 {[%emt 0:01:27]} Rc7 {[%emt 0:00:38]} 19. Qa5 {[%emt 0:08:24]} Qb6 {[%emt 0:07:03]} 20. Qb5 {[%emt 0:02:55]} Rdc8 {[%emt 0:01:22]} 21. Rc2 {[%emt 0:12:41]} Ne4 {[%emt 0:03:27]} 22. Rdc1 {[%emt 0:02:33]} Bc6 {[%emt 0:06:21]} 23. Qd3 {[%emt 0:03:49]} f5 {[%emt 0:00:57]} 24. Ne5 {[%emt 0:02:12]} Bb7 {[%emt 0:02:09]} 25. Qd1 {[%emt 0:12:39]} g5 {[%emt 0:05:31]} 26. Bf3 {[%emt 0:02:16]} Qf6 {[%emt 0:05:21]} 27. Bxe4 {[%emt 0:01:24]} fxe4 {[%emt 0:01:55]} 28. Ng4 {[%emt 0:00:44]} Qd6 {[%emt 0:00:59]} 29. f3 {[%emt 0:01:18]} exf3 {[%emt 0:10:44]} 30. Qxf3 {[%emt 0:00:29]} Rf8 {[%emt 0:00:13]} 31. Qd1 {[%emt 0:00:28]} h5 {[%emt 0:00:55]} 32. Nh2 {[%emt 0:00:29]} Qg3 {[%emt 0:02:19]} 33. Qxh5 {[%emt 0:00:44]} Rh7 {[%emt 0:01:10]} 34. Qg6+ {[%emt 0:01:46]} Kh8 {[%emt 0:00:53]} 35. Qe6 {[%emt 0:00:29]} Bc8 {[%emt 0:00:51]} 36. Qxd5 {[%emt 0:00:25]} Qxe3+ {[%emt 0:12:19]} 37. Kh1 {[%emt 0:00:16]} Bb7 {[%emt 0:01:40]} 38. Qxc5 {[%emt 0:01:01]} Qxc5 {[%emt 0:00:35]} 1/2-1/2

[Event "CZE-ch U14 Open 2023"]
[Site "Teplice"]
[Date "2023.03.15"]
[Round "6.9"]
[White "Krautschneider, Daniel Jan"]
[Black "Soucek, Andrej"]
[Result "1-0"]
[ECO "B50"]
[WhiteElo "1679"]
[BlackElo "1679"]
[Annotator "NA RC COMBH"]
[PlyCount "67"]
[EventDate "2023.03.09"]
[EventType "swiss"]
[EventCountry "CZE"]
[SourceTitle "playchess.com"]
[Source "ChessBase"]
[SourceQuality "1"]
[TimeControl "40/5400+30:1800+30"]

1. e4 {[%emt 0:00:08]} c5 {[%emt 0:00:07]} 2. Nf3 {[%emt 0:00:05]} d6 {[%emt 0:00:06]} 3. c3 {[%emt 0:00:06]} Nf6 {[%emt 0:00:21]} 4. Be2 {[%emt 0:00:13]} Nc6 {[%emt 0:00:40]} 5. d4 {[%emt 0:00:08]} e6 {[%emt 0:10:34]} 6. d5 {[%emt 0:08:42]} exd5 {[%emt 0:05:35]} 7. exd5 {[%emt 0:00:10]} Ne5 {[%emt 0:00:33]} 8. O-O {[%emt 0:00:20]} Be7 {[%emt 0:01:09]} 9. Re1 {[%emt 0:00:50]} O-O {[%emt 0:02:31]} 10. c4 {[%emt 0:00:26]} Qc7 {[%emt 0:08:36]} 11. Nc3 {[%emt 0:00:37]} a6 {[%emt 0:00:13]} 12. Qc2 {[%emt 0:01:27]} Nfd7 {[%emt 0:03:35]} 13. Ng5 {[%emt 0:05:01]} Bxg5 {[%emt 0:02:06]} 14. Bxg5 {[%emt 0:00:33]} h6 {[%emt 0:07:57]} 15. Bd2 {[%emt 0:00:24]} Nb6 {[%emt 0:09:57]} 16. b3 {[%emt 0:00:38]} Bg4 {[%emt 0:14:15]} 17. f4 {[%emt 0:01:46]} Bxe2 {[%emt 0:00:10]} 18. Rxe2 {[%emt 0:00:53]} Ng6 {[%emt 0:03:19]} 19. Rae1 {[%emt 0:01:41]} Nd7 {[%emt 0:08:06]} 20. f5 {[%emt 0:00:54]} Nge5 {[%emt 0:00:06]} 21. Ne4 {[%emt 0:00:13]} Kh7 {[%emt 0:04:10]} 22. f6 {[%emt 0:00:39]} g6 {[%emt 0:00:04]} 23. Re3 {[%emt 0:03:50]} Ng4 {[%emt 0:05:21]} 24. Rh3 {[%emt 0:05:03]} Ndxf6 {[%emt 0:03:39]} 25. Nxf6+ {[%emt 0:02:12]} Nxf6 {[%emt 0:00:07]} 26. Bxh6 {[%emt 0:00:24]} Rfe8 {[%emt 0:07:27]} 27. Bg5+ {[%emt 0:01:59]} Kg7 {[%emt 0:02:12]} 28. Bxf6+ {[%emt 0:05:29]} Kxf6 {[%emt 0:00:02]} 29. Rf1+ {[%emt 0:01:02]} Kg7 {[%emt 0:01:10]} 30. Qf2 {[%emt 0:02:27]} Qe7 {[%emt 0:00:32]} 31. Qf4 {[%emt 0:00:20]} Rh8 {[%emt 0:00:34]} 32. Re3 {[%emt 0:00:48]} Qd7 {[%emt 0:00:23]} 33. Qf6+ {[%emt 0:00:23]} Kg8 {[%emt 0:00:51]} 34. Re7 {[%emt 0:00:11]} 1-0

[Event "CZE-ch U14 Open 2023"]
[Site "Teplice"]
[Date "2023.03.15"]
[Round "6.10"]
[White "Dusanek, Michal"]
[Black "Srba, Daniel"]
[Result "1-0"]
[ECO "A41"]
[WhiteElo "1624"]
[BlackElo "1509"]
[Annotator "NA RC COMBH"]
[PlyCount "92"]
[EventDate "2023.03.09"]
[EventType "swiss"]
[EventCountry "CZE"]
[SourceTitle "playchess.com"]
[Source "ChessBase"]
[SourceQuality "1"]
[TimeControl "40/5400+30:1800+30"]

1. d4 {[%emt 0:00:04]} d6 {[%emt 0:00:12]} 2. e4 {[%emt 0:00:18]} Nd7 {[%emt 0:00:25]} 3. Nf3 {[%emt 0:01:19]} Ngf6 {[%emt 0:02:08]} 4. Bd3 {[%emt 0:00:18]} e5 {[%emt 0:00:41]} 5. b3 {[%emt 0:03:53]} exd4 {[%emt 0:07:16]} 6. Nxd4 {[%emt 0:00:32]} Ne5 {[%emt 0:03:32]} 7. Bb2 {[%emt 0:08:05]} Bg4 {[%emt 0:07:32]} 8. f3 {[%emt 0:04:05]} Bd7 {[%emt 0:01:35]} 9. O-O {[%emt 0:05:19]} Be7 {[%emt 0:05:52]} 10. Kh1 {[%emt 0:01:40]} h5 {[%emt 0:13:29]} 11. Nf5 {[%emt 0:03:55]} g6 {[%emt 0:04:34]} 12. Nxe7 {[%emt 0:02:35]} Qxe7 {[%emt 0:00:08]} 13. f4 {[%emt 0:02:31]} Bg4 {[%emt 0:09:00]} 14. Qe1 {[%emt 0:02:36]} Nxd3 {[%emt 0:04:17]} 15. cxd3 {[%emt 0:00:08]} O-O-O {[%emt 0:09:02]} 16. Qh4 {[%emt 0:01:31]} Nd5 {[%emt 0:06:10]} 17. Qxe7 {[%emt 0:00:31]} Nxe7 18. Bxh8 {[%emt 0:00:06]} Rxh8 {[%emt 0:00:06]} 19. Nc3 {[%emt 0:00:45]} Nc6 {[%emt 0:00:11]} 20. h3 {[%emt 0:00:53]} Bd7 {[%emt 0:00:38]} 21. Nd5 {[%emt 0:02:26]} f5 {[%emt 0:02:21]} 22. Rac1 {[%emt 0:01:40]} Be6 {[%emt 0:01:21]} 23. Rfe1 {[%emt 0:04:15]} Bxd5 {[%emt 0:02:04]} 24. exd5 {[%emt 0:00:02]} Nb4 {[%emt 0:00:37]} 25. Re6 {[%emt 0:02:17]} Nxd3 {[%emt 0:01:21]} 26. Rc4 {[%emt 0:04:30]} Rg8 {[%emt 0:00:15]} 27. Rxd6 {[%emt 0:03:39]} Nxf4 {[%emt 0:01:50]} 28. Kh2 {[%emt 0:09:36]} Nd3 {[%emt 0:04:44]} 29. Re6 {[%emt 0:01:34]} Kd7 {[%emt 0:01:57]} 30. Kg3 {[%emt 0:02:52]} b6 {[%emt 0:02:36]} 31. Rec6 {[%emt 0:05:58]} Nc5 {[%emt 0:00:53]} 32. Kf4 {[%emt 0:01:17]} g5+ {[%emt 0:03:11]} 33. Kxf5 {[%emt 0:00:28]} g4 {[%emt 0:00:08]} 34. hxg4 {[%emt 0:02:23]} hxg4 {[%emt 0:00:23]} 35. Rxg4 {[%emt 0:00:38]} Rf8+ {[%emt 0:01:08]} 36. Kg5 {[%emt 0:00:19]} Nd3 {[%emt 0:01:01]} 37. Kh6 {[%emt 0:01:33]} Rh8+ {[%emt 0:02:17]} 38. Kg7 {[%emt 0:00:14]} Rh5 {[%emt 0:00:09]} 39. Rd4 {[%emt 0:01:33]} Ne5 {[%emt 0:01:01]} 40. Re6 {[%emt 0:00:20]} c5 {[%emt 0:02:06]} 41. Re4 {[%emt 0:30:40]} Nd3 {[%emt 0:30:36]} 42. d6 {[%emt 0:01:10]} Rg5+ {[%emt 0:00:58]} 43. Rg6 {[%emt 0:00:09]} Rxg6+ {[%emt 0:00:10]} 44. Kxg6 {[%emt 0:00:09]} Kxd6 {[%emt 0:00:06]} 45. Kf6 {[%emt 0:02:17]} Nb4 {[%emt 0:01:29]} 46. Rxb4 {[%emt 0:01:22]} Kd5 1-0

[Event "CZE-ch U14 Open 2023"]
[Site "Teplice"]
[Date "2023.03.15"]
[Round "6.11"]
[White "Macosek, Alex"]
[Black "Hobza, Richard"]
[Result "0-1"]
[ECO "A00"]
[WhiteElo "1466"]
[BlackElo "1702"]
[Annotator "NA RC COMBH"]
[PlyCount "70"]
[EventDate "2023.03.09"]
[EventType "swiss"]
[EventCountry "CZE"]
[SourceTitle "playchess.com"]
[Source "ChessBase"]
[SourceQuality "1"]
[TimeControl "40/5400+30:1800+30"]

1. g3 {[%emt 0:01:06]} e5 {[%emt 0:00:14]} 2. Bg2 {[%emt 0:00:22]} Nc6 {[%emt 0:00:24]} 3. d3 {[%emt 0:00:12]} d5 {[%emt 0:00:20]} 4. a3 {[%emt 0:01:23]} Nf6 {[%emt 0:00:47]} 5. b4 {[%emt 0:00:13]} Be6 {[%emt 0:05:44]} 6. Bb2 {[%emt 0:00:37]} Bd6 {[%emt 0:00:47]} 7. Nd2 {[%emt 0:00:12]} Qd7 {[%emt 0:06:55]} 8. c4 {[%emt 0:01:12]} a6 {[%emt 0:04:01]} 9. c5 {[%emt 0:00:54]} Be7 {[%emt 0:00:13]} 10. Ngf3 {[%emt 0:00:08]} Bh3 {[%emt 0:06:44]} 11. Bxh3 {[%emt 0:11:42]} Qxh3 {[%emt 0:00:09]} 12. Nxe5 {[%emt 0:00:19]} Nxe5 {[%emt 0:04:20]} 13. Bxe5 {[%emt 0:00:33]} Qg2 {[%emt 0:01:31]} 14. Rf1 {[%emt 0:00:36]} O-O {[%emt 0:03:33]} 15. Nf3 {[%emt 0:01:56]} Ng4 {[%emt 0:01:45]} 16. Bxc7 {[%emt 0:03:48]} Bf6 {[%emt 0:02:41]} 17. d4 {[%emt 0:01:36]} Rfe8 {[%emt 0:01:40]} 18. Qd3 {[%emt 0:02:38]} Re4 {[%emt 0:04:34]} 19. O-O-O {[%emt 0:05:41]} Nxf2 {[%emt 0:01:30]} 20. Rxf2 {[%emt 0:01:11]} Qxf2 {[%emt 0:00:06]} 21. Rd2 {[%emt 0:00:16]} Rae8 {[%emt 0:01:12]} 22. Be5 {[%emt 0:00:24]} Bxe5 {[%emt 0:03:37]} 23. dxe5 {[%emt 0:00:22]} Qe3 {[%emt 0:06:25]} 24. Qxe3 {[%emt 0:08:30]} Rxe3 {[%emt 0:00:05]} 25. Rxd5 {[%emt 0:01:26]} Rxe2 {[%emt 0:01:50]} 26. c6 {[%emt 0:02:54]} bxc6 {[%emt 0:00:58]} 27. Ra5 {[%emt 0:00:12]} Rf2 {[%emt 0:08:41]} 28. Nd4 {[%emt 0:01:13]} h6 {[%emt 0:03:07]} 29. Nxc6 {[%emt 0:00:58]} f6 {[%emt 0:01:58]} 30. Rxa6 {[%emt 0:01:39]} fxe5 {[%emt 0:00:17]} 31. b5 {[%emt 0:00:27]} e4 {[%emt 0:01:19]} 32. b6 {[%emt 0:06:46]} e3 {[%emt 0:00:34]} 33. Nd4 {[%emt 0:00:06]} e2 {[%emt 0:00:33]} 34. Nxe2 {[%emt 0:00:27]} Rexe2 {[%emt 0:00:33]} 35. Kd1 {[%emt 0:00:17]} Ra2 {[%emt 0:00:14]} 0-1

[Event "CZE-ch U14 Open 2023"]
[Site "Teplice"]
[Date "2023.03.15"]
[Round "6.12"]
[White "Striz, Tadeas"]
[Black "Tichy, Tomas"]
[Result "0-1"]
[ECO "B33"]
[WhiteElo "1503"]
[BlackElo "1810"]
[Annotator "NA RC COMBH"]
[PlyCount "83"]
[EventDate "2023.03.09"]
[EventType "swiss"]
[EventCountry "CZE"]
[SourceTitle "playchess.com"]
[Source "ChessBase"]
[SourceQuality "1"]
[TimeControl "40/5400+30:1800+30"]

1. e4 {[%emt 0:00:03]} c5 {[%emt 0:00:07]} 2. Nf3 {[%emt 0:00:06]} Nc6 {[%emt 0:00:03]} 3. d4 {[%emt 0:00:09]} cxd4 {[%emt 0:00:01]} 4. Nxd4 {[%emt 0:00:07]} Nf6 {[%emt 0:00:00]} 5. Nc3 {[%emt 0:00:15]} e5 {[%emt 0:00:04]} 6. Ndb5 {[%emt 0:00:10]} d6 {[%emt 0:00:05]} 7. Bg5 {[%emt 0:00:14]} a6 {[%emt 0:00:04]} 8. Na3 {[%emt 0:00:05]} b5 {[%emt 0:00:02]} 9. Nd5 {[%emt 0:00:06]} Be7 {[%emt 0:00:08]} 10. Bxf6 {[%emt 0:00:07]} Bxf6 {[%emt 0:00:04]} 11. c3 {[%emt 0:00:08]} Bg5 {[%emt 0:00:35]} 12. Nc2 {[%emt 0:01:18]} Rb8 {[%emt 0:00:10]} 13. Bd3 {[%emt 0:03:36]} O-O {[%emt 0:03:14]} 14. O-O {[%emt 0:01:25]} Be6 {[%emt 0:03:50]} 15. Nce3 {[%emt 0:01:33]} Bxe3 {[%emt 0:05:42]} 16. Nxe3 {[%emt 0:05:57]} a5 {[%emt 0:03:43]} 17. a3 {[%emt 0:16:26]} b4 {[%emt 0:12:46]} 18. Qd2 {[%emt 0:04:48]} (18. Qa4 $142 bxc3 19. Qxc6 cxb2 20. Rab1) 18... bxc3 {[%emt 0:07:45]} 19. bxc3 {[%emt 0:00:25]} a4 {[%emt 0:04:18]} 20. Rab1 {[%emt 0:15:25]} Bb3 {[%emt 0:05:50]} 21. Bc4 {[%emt 0:18:31]} Na5 {[%emt 0:07:16]} 22. Bxb3 {[%emt 0:00:02]} axb3 {[%emt 0:08:11]} 23. Rfd1 {[%emt 0:12:04]} Rb6 {[%emt 0:16:03]} 24. Qd3 {[%emt 0:08:12]} Qd7 {[%emt 0:03:19]} 25. Nc4 {[%emt 0:02:59]} Nxc4 {[%emt 0:00:12]} 26. Qxc4 {[%emt 0:00:03]} Qb7 {[%emt 0:01:18]} 27. Rb2 {[%emt 0:01:54]} Rc8 {[%emt 0:01:05]} 28. Qd3 {[%emt 0:00:19]} Qc6 {[%emt 0:00:51]} 29. Rc1 {[%emt 0:07:33]} Qc4 {[%emt 0:01:43]} 30. Qxc4 {[%emt 0:00:40]} Rxc4 {[%emt 0:00:05]} 31. f3 {[%emt 0:00:11]} Ra4 {[%emt 0:00:29]} 32. Ra1 {[%emt 0:00:02]} Kf8 {[%emt 0:01:17]} 33. Kf2 {[%emt 0:00:01]} Ke7 {[%emt 0:00:50]} 34. Ke3 {[%emt 0:01:02]} Kd7 {[%emt 0:01:50]} 35. Kd3 {[%emt 0:00:35]} Kc6 {[%emt 0:00:30]} 36. h3 {[%emt 0:01:20]} Kc5 {[%emt 0:01:02]} 37. g3 $17 {[%emt 0:00:29]} (37. g4 $142) 37... d5 {[%emt 0:01:24]} 38. exd5 {[%emt 0:00:37]} Kxd5 {[%emt 0:00:10]} 39. h4 {[%emt 0:00:30]} Kc5 {[%emt 0:01:26]} 40. Re1 {[%emt 0:00:31]} f6 {[%emt 0:00:31]} 41. Ra1 {[%emt 0:30:09]} Rd6+ {[%emt 0:30:20]} 42. Ke3 0-1

[Event "CZE-ch U14 Open 2023"]
[Site "Teplice"]
[Date "2023.03.16"]
[Round "7.1"]
[White "Juhanak, Daniel"]
[Black "Ocelak, David"]
[Result "1/2-1/2"]
[ECO "E16"]
[WhiteElo "1952"]
[BlackElo "1608"]
[Annotator "TA"]
[PlyCount "81"]
[EventDate "2023.03.09"]
[EventType "swiss"]
[EventCountry "CZE"]
[SourceTitle "playchess.com"]
[Source "ChessBase"]
[SourceQuality "1"]
[TimeControl "40/5400+30:1800+30"]

{[%evp 18,81,5,0,11,-12,22,32,25,0,15,10,29,21,23,28,27,16,22,24,22,24,17,15,19,6,6,0,0,0,0,0,16,7,24,-3,0,0,0,-8,0,0,21,4,0,0,52,0,39,41,54,54,60,34,80,22,31,0,0,0,0,-12,0,0,0,-63]} 1. d4 {[%emt 0:00:02]} Nf6 {[%emt 0:00:09]} 2. Nf3 {[%emt 0:00:22]} e6 {[%emt 0:00:32]} 3. c4 {[%emt 0:01:15]} Bb4+ {[%emt 0:00:27]} 4. Bd2 {[%emt 0:00:32]} Qe7 {[%emt 0:01:01]} 5. a3 {[%emt 0:01:54]} Bxd2+ {[%emt 0:00:18]} 6. Nbxd2 {[%emt 0:01:47]} O-O {[%emt 0:00:56]} 7. e3 {[%emt 0:07:34]} d6 {[%emt 0:01:50]} 8. Qc2 {[%emt 0:19:00]} Nbd7 {[%emt 0:02:07]} 9. Bd3 {[%emt 0:13:33]} e5 {[%emt 0:04:03]} 10. O-O {[%emt 0:05:30]} Re8 {[%emt 0:02:28] [#] ...e4 is the strong threat. E11: Bogo-Indian.} 11. Ne4 {[%emt 0:06:53] [#]} exd4 $146 {[%emt 0:06:57][%cal Rf6e4]} ({Predecessor:} 11... g6 12. Nfd2 Nxe4 13. Nxe4 Kg7 14. Rad1 Nf6 15. d5 Nxe4 16. Bxe4 a5 17. Qc3 Bd7 18. b3 {½-½ Mueller,H-Bartel,M DESC Liga 2010th Gr.D email}) 12. Nxf6+ {[%emt 0:00:38]} Nxf6 {[%emt 0:00:14] White is slightly better.} 13. Nxd4 {[%emt 0:02:06]} a6 {[%emt 0:08:03]} 14. b4 {[%emt 0:02:29]} Ne4 {[%emt 0:06:06]} 15. Bxe4 {[%emt 0:06:29]} Qxe4 {[%emt 0:00:19]} 16. Qxe4 {[%emt 0:01:03]} Rxe4 {[%emt 0:00:12]} 17. Rac1 {[%emt 0:01:20]} b6 {[%emt 0:10:09]} 18. c5 {[%emt 0:03:37]} dxc5 {[%emt 0:03:06]} 19. bxc5 {[%emt 0:00:08]} b5 {[%emt 0:01:27]} 20. Rfd1 {[%emt 0:03:59][%cal Od4b5] [#] Threatens to win with Nxb5!} Kf8 {[%emt 0:02:18]} 21. c6 {[%emt 0:01:30]} Rb8 {[%emt 0:04:04]} 22. Rc5 {[%emt 0:02:05]} g6 {[%emt 0:10:44]} 23. Rb1 {[%emt 0:04:32]} Ke8 {[%emt 0:02:42]} 24. Rb4 {[%emt 0:02:52]} Ra8 {[%emt 0:09:30]} 25. h3 {[%emt 0:00:59][%cal Od4b5] next Nxb5! is good for White.} ({Wrong is} 25. Nxb5 $2 Rxb4 26. Nxc7+ Kd8 $19) 25... f5 {[%emt 0:03:20]} 26. Nb3 {[%emt 0:04:50]} Rxb4 {[%emt 0:03:14]} 27. axb4 $11 {[%emt 0:00:01][%mdl 4096] Endgame KRB-KRN} Be6 {[%emt 0:02:26]} 28. Nd4 {[%emt 0:02:22]} (28. Re5 $5 Kf7 $8 29. Nc5 $11) 28... Kf7 {[%emt 0:03:55]} 29. Rc1 {[%emt 0:02:12]} Rb8 {[%emt 0:03:35]} 30. f3 {[%emt 0:01:13]} (30. Ra1 $5 {[%cal Ra1a6]}) 30... Bc4 {[%emt 0:03:10]} 31. Kf2 {[%emt 0:00:59]} Rd8 {[%emt 0:01:21]} ({Black should try} 31... h5 $11) 32. f4 {[%emt 0:00:58]} (32. Ra1 $14) 32... Kf6 {[%emt 0:01:20]} 33. g4 {[%emt 0:01:05]} h6 {[%emt 0:01:11]} 34. Ra1 {[%emt 0:00:43]} Ra8 {[%emt 0:00:35]} 35. Nf3 {[%emt 0:00:39]} Be6 {[%emt 0:01:56]} (35... g5 $14) 36. Ne5 {[%emt 0:00:31] White is more active.} (36. g5+ $16 hxg5 37. fxg5+ Kf7 38. Ne5+ Kg7 39. Nd3) 36... g5 {[%emt 0:01:27]} 37. Ra3 {[%emt 0:00:41]} Rd8 {[%emt 0:00:53] The position is equal.} 38. Rxa6 Rd2+ {[%emt 0:00:23]} 39. Kg1 {[%emt 0:01:04]} Rd1+ {[%emt 0:00:14][%mdl 1024] Black has compensation.} 40. Kf2 {[%emt 0:00:20]} Rd2+ {[%emt 0:00:09]} ({Better is} 40... gxf4 $11 41. exf4 Rd4) 41. Kg1 {[%emt 0:17:41] Weighted Error Value: White=0.13 (very precise) /Black=0.12 (very precise)} 1/2-1/2